bitfinex/quotes_ETHUSD_20250324
["timestamp","ask_amount","ask_price","bid_price","bid_amount"]
[1742838707089,5.54666,2093.0,2092.6,4.77859]
[1742838707290,5.54666,2093.0,2092.6,9.55722]
[1742838707507,0.7688,2093.0,2092.6,4.77859]
[1742838707712,0.7688,2093.0,2092.7,4.77834]
[1742838708498,0.8226,2093.3,2092.9,4.77786]
[1742838708707,5.59977,2093.3,2093.0,4.532]
[1742838709920,0.8226,2093.3,2093.0,4.532]
[1742838710106,0.8226,2093.3,2093.0,9.30971]
[1742838711621,0.8226,2093.3,2093.0,14.08744]
[1742838711792,0.8226,2093.3,2093.0,9.30971]
[1742838713162,0.8226,2093.3,2093.0,14.08745]
[1742838713318,0.8226,2093.3,2093.0,9.30971]
[1742838713514,0.8226,2093.3,2093.0,14.08741]
[1742838713729,0.8226,2093.3,2093.0,9.3097]
[1742838714956,0.8226,2093.3,2093.0,14.08738]
[1742838715162,0.8226,2093.3,2093.0,9.30968]
[1742838715641,4.78702,2093.4,2093.1,4.77756]
[1742838716168,4.78702,2093.4,2093.0,4.532]
[1742838716169,4.78702,2093.4,2093.0,9.30977]
[1742838717270,9.56412,2093.4,2093.0,9.30977]
[1742838717469,4.78702,2093.4,2093.0,9.30977]
[1742838718518,4.78702,2093.4,2093.0,4.532]
[1742838718844,4.78702,2093.4,2093.1,4.77759]
[1742838719415,0.01,2093.4,2093.2,4.77736]
[1742838720449,0.01,2093.4,2093.3,4.77714]
[1742838720849,0.01,2093.4,2093.2,4.82507893]
[1742838721032,0.01,2093.4,2093.2,4.77731]
[1742838721963,0.01,2093.4,2093.2,4.82507892]
[1742838722336,0.40701698,2093.5,2093.2,4.82507892]
[1742838722533,4.77651,2093.6,2093.2,4.82507892]
[1742838722954,4.77651,2093.6,2093.2,4.82503892]
[1742838723541,9.55314,2093.6,2093.2,4.82503892]
[1742838723740,9.55309,2093.6,2093.2,4.82503892]
[1742838723943,9.55314,2093.6,2093.2,4.82503892]
[1742838724256,4.77651,2093.6,2093.2,4.82503892]
[1742838724827,4.77686,2093.5,2093.1,5.74971457]
[1742838725054,4.77686,2093.5,2093.1,4.77749]
[1742838725258,4.77658,2093.6,2093.1,4.77745]
[1742838725446,0.55,2093.7,2093.1,9.5549]
[1742838725447,5.53689,2093.5,2093.1,9.5549]
[1742838726361,5.53689,2093.5,2093.2,4.77736]
[1742838726557,5.53689,2093.5,2093.2,4.8251289]
[1742838727163,5.53689,2093.5,2093.2,4.77736]
[1742838727367,4.77669,2093.5,2093.2,4.77736]
[1742838728558,4.77669,2093.5,2093.3,4.53]
[1742838728939,4.7765,2093.6,2093.3,4.53]
[1742838729527,6.09234,2093.7,2093.3,4.53]
[1742838729528,4.77691,2093.4,2093.3,4.53]
[1742838729760,4.77725,2093.3,2092.9,25.255]
[1742838729961,0.8331,2093.4,2092.9,25.255]
[1742838729962,4.77748,2093.2,2093.0,4.53]
[1742838730466,5.61013,2093.4,2093.0,4.53]
[1742838730642,4.77751,2093.2,2093.0,4.53]
[1742838730844,5.5533,2093.1,2092.9,25.255]
[1742838731055,6.10343,2093.0,2092.9,25.255]
[1742838731344,6.10343,2093.0,2092.9,29.785]
[1742838731544,7.669281,2093.0,2092.9,29.785]
[1742838732172,6.10343,2093.0,2092.9,29.785]
[1742838733545,5.55343,2093.0,2092.9,29.785]
[1742838737965,0.7756,2093.0,2092.9,29.785]
[1742838738272,5.55343,2093.0,2092.9,29.785]
[1742838740968,5.32761,2093.1,2092.9,29.785]
[1742838741382,5.59548,2093.5,2093.0,0.8268]
[1742838741677,5.59548,2093.5,2092.9,29.785]
[1742838741678,4.77704,2093.4,2092.9,34.563]
[1742838742246,4.77716,2093.3,2092.9,34.563]
[1742838744170,4.77716,2093.3,2092.9,29.785]
[1742838745183,4.77738,2093.2,2092.9,29.785]
[1742838745694,4.77738,2093.2,2092.9,30.14477157]
[1742838746054,4.77738,2093.2,2092.9,29.785]
[1742838746786,4.77721,2093.3,2092.9,29.785]
[1742838747080,4.77741,2093.2,2092.9,29.785]
[1742838747250,9.55457,2093.3,2092.9,34.56305]
[1742838747650,4.7774,2093.2,2092.9,29.785]
[1742838748385,4.77721,2093.3,2092.9,29.785]
[1742838748787,4.77739,2093.2,2092.9,29.785]
[1742838749283,4.77721,2093.3,2092.9,34.56295]
[1742838749484,9.55452,2093.3,2092.9,34.56295]
[1742838750788,4.77721,2093.3,2092.9,34.56295]
[1742838751160,4.77721,2093.3,2092.9,39.34082]
[1742838751361,4.77721,2093.3,2092.9,39.34086]
[1742838751769,9.55452,2093.3,2092.9,34.5629]
[1742838751988,4.77721,2093.3,2092.9,34.5629]
[1742838752591,4.77721,2093.3,2092.9,39.34082]
[1742838752965,4.77721,2093.3,2092.9,34.5629]
[1742838753482,4.77693,2093.4,2093.0,4.77772]
[1742838753795,4.77717,2093.3,2092.9,34.56298]
[1742838753997,4.77717,2093.3,2092.9,34.56291]
[1742838754496,5.32695,2093.4,2092.9,39.34081]
[1742838754865,10.10404,2093.4,2092.9,34.5629]
[1742838755367,4.77717,2093.3,2092.9,34.5629]
[1742838755697,4.77717,2093.3,2092.9,34.56305]
[1742838756428,4.77694,2093.4,2092.9,29.785]
[1742838756571,9.55371,2093.5,2093.0,4.77765]
[1742838756772,4.77692,2093.4,2093.0,4.77765]
[1742838760907,4.77692,2093.4,2092.9,34.91577283]
[1742838761211,4.77715,2093.3,2092.9,39.69356283]
[1742838761612,4.77712,2093.4,2093.0,4.77781]
[1742838761780,4.77709,2093.4,2093.0,4.77781]
[1742838762513,4.77723,2093.3,2092.9,30.13774283]
[1742838762899,0.8023,2093.3,2092.9,25.255]
[1742838763131,4.77783,2093.0,2092.9,25.255]
[1742838763283,5.58013,2093.0,2092.9,29.785]
[1742838767624,5.58013,2093.0,2092.9,4.53]
[1742838772538,4.77783,2093.0,2092.9,4.53]
[1742838772690,4.7776,2093.1,2092.9,4.53]
[1742838772892,4.77783,2093.0,2092.9,4.53]
[1742838774309,6.293112,2093.0,2092.9,4.53]
[1742838775323,4.7776,2093.1,2092.9,4.53]
[1742838776595,9.55536,2093.1,2092.9,4.53]
[1742838777130,4.77783,2093.0,2092.9,4.53]
[1742838787107,4.77859,2092.7,2092.5,26.0842]
[1742838787315,4.77859,2092.7,2092.6,4.53]
[1742838788242,9.5573,2092.7,2092.5,26.0842]
[1742838788447,4.77874,2092.6,2092.5,25.254]
[1742838788659,4.77874,2092.6,2092.5,29.784]
[1742838789644,4.7783,2092.8,2092.6,0.8065]
[1742838790213,4.77837,2092.8,2092.6,0.8065]
[1742838790618,9.55682,2092.8,2092.6,0.8065]
[1742838790851,4.77837,2092.8,2092.6,0.8065]
[1742838792267,4.77851,2092.7,2092.6,0.8065]
[1742838793069,4.77851,2092.7,2092.5,29.784]
[1742838794554,9.55719,2092.7,2092.5,29.784]
[1742838794739,4.77874,2092.6,2092.5,29.784]
[1742838795122,4.77857,2092.7,2092.5,29.784]
[1742838795524,4.77874,2092.6,2092.5,29.784]
[1742838795750,4.77874,2092.6,2092.5,25.254]
[1742838796219,4.77874,2092.6,2092.5,29.784]
[1742838796415,4.77874,2092.6,2092.5,4.53]
[1742838797663,6.28817,2092.6,2092.5,4.53]
[1742838798349,4.77942,2092.3,2092.2,25.257]
[1742838798646,4.77942,2092.3,2092.2,29.787]
[1742838800058,4.77942,2092.3,2092.2,25.257]
[1742838800226,4.77942,2092.3,2092.2,29.787]
[1742838802958,4.77925,2092.4,2092.2,29.787]
[1742838804159,9.55863,2092.4,2092.2,29.787]
[1742838804360,4.77942,2092.3,2092.2,29.787]
[1742838804662,9.55863,2092.4,2092.2,29.787]
[1742838804957,4.77925,2092.4,2092.2,29.787]
[1742838805551,4.77892,2092.6,2092.3,0.7596]
[1742838806063,0.8104,2092.5,2091.7,3.0]
[1742838806263,0.8104,2092.5,2089.2,0.96206956]
[1742838806264,4.281506,2091.6,2089.2,0.96206956]
[1742838806527,4.6576,2092.3,2086.3,0.1]
[1742838806528,7.908,2088.7,2086.3,0.1]
[1742838806654,5.874,2086.0,2084.0,0.011]
[1742838806967,0.1,2085.6,2084.0,0.011]
[1742838807165,0.8104,2084.6,2083.7,25.26]
[1742838807367,4.89892,2083.8,2083.7,25.26]
[1742838807661,0.04779183,2083.8,2083.7,34.439]
[1742838807861,4.12462777,2083.9,2083.8,9.81e-06]
[1742838808165,4.79821,2084.2,2083.8,3.44390098]
[1742838808465,3.0,2087.4,2084.7,0.7662]
[1742838808665,4.7933,2086.3,2085.1,4.79579]
[1742838808832,5.26993188,2087.1,2085.2,50.979579]
[1742838809034,4.79268,2086.6,2085.6,0.1]
[1742838809229,4.79013,2087.7,2085.6,0.1]
[1742838809230,4.78969,2087.9,2086.2,0.1]
[1742838809462,4.78969,2087.9,2085.6,4.79462]
[1742838809463,0.01,2089.4,2086.3,14.46016]
[1742838809668,3.0,2091.6,2087.7,0.7971]
[1742838809851,4.78393,2090.4,2087.8,0.1]
[1742838810053,4.78666,2089.2,2087.8,0.1]
[1742838810273,4.78757,2088.8,2087.4,4.79049]
[1742838810576,0.7779,2089.0,2087.0,4.79141]
[1742838810777,0.7779,2089.0,2086.8,5.55073]
[1742838810968,0.96617848,2088.9,2086.9,4.79179]
[1742838811169,0.7779,2089.0,2087.0,0.555059]
[1742838811373,0.7779,2089.0,2087.7,4.7898]
[1742838811374,0.98072331,2088.0,2087.7,4.7898]
[1742838811548,11.62148404,2088.6,2088.0,4.7891]
[1742838811877,11.62148404,2088.6,2088.5,4.78812]
[1742838812077,0.90668194,2088.9,2088.7,4.78763]
[1742838812276,0.90668194,2088.9,2088.8,0.478763]
[1742838812480,0.90668194,2088.9,2088.8,35.024]
[1742838812679,0.7787,2089.6,2088.8,35.024]
[1742838813163,0.7787,2089.6,2087.6,0.9600253]
[1742838813355,0.7787,2089.6,2087.7,34.995]
[1742838813356,0.90397963,2089.5,2087.7,34.995]
[1742838813572,0.90397963,2089.5,2087.8,3.4995]
[1742838813746,4.98063602,2088.8,2087.9,4.78937]
[1742838813950,4.98063602,2088.8,2088.0,9.688]
[1742838814187,4.98063602,2088.8,2088.0,14.47714]
[1742838814389,4.98063602,2088.8,2088.0,9.688]
[1742838814589,5.47869962,2088.8,2088.0,11.48569]
[1742838815153,5.47869962,2088.8,2088.1,9.641]
[1742838815684,4.98063602,2088.7,2088.1,9.641]
[1742838815880,4.98063602,2088.7,2088.2,25.294]
[1742838816106,0.9794924,2088.5,2088.3,25.294]
[1742838816994,4.98063602,2088.6,2087.8,4.78967]
[1742838817289,0.34718512,2088.4,2088.3,4.78858]
[1742838818252,5.12e-06,2088.4,2088.3,7.78858]
[1742838818496,4.85e-06,2088.5,2088.4,7.25036816]
[1742838819668,4.82588546,2089.5,2088.5,4.78795]
[1742838819876,4.82588546,2089.5,2089.1,4.78661]
[1742838820363,4.82588546,2089.5,2089.1,9.57323]
[1742838820570,4.82588546,2089.5,2089.1,4.78661]
[1742838820878,4.82588546,2089.5,2088.6,39.55872]
[1742838821073,7.23727397,2089.4,2089.3,4.78629]
[1742838821285,7.23727397,2089.4,2089.3,14.20529]
[1742838821790,7.23727397,2089.4,2089.3,9.419]
[1742838821992,7.23727397,2089.4,2089.3,14.20529]
[1742838822300,7.23727397,2089.4,2089.3,19.104464]
[1742838822607,7.23727397,2089.4,2089.3,4.899174]
[1742838822769,7.23727397,2089.4,2089.3,7.78629]
[1742838822974,6.03919856,2089.4,2089.3,7.78629]
[1742838823171,5.628468,2089.4,2089.3,7.78629]
[1742838823370,5.628468,2089.4,2089.3,4.78629]
[1742838823792,5.628468,2089.4,2089.3,14.11829]
[1742838824904,5.628468,2089.4,2089.1,4.78672]
[1742838825066,5.628468,2089.4,2089.3,34.578]
[1742838827680,5.628468,2089.4,2089.3,39.36429]
[1742838827918,5.628468,2089.4,2089.3,43.300719]
[1742838828894,5.628468,2089.4,2089.3,34.578]
[1742838829608,5.628468,2089.4,2089.3,39.36429]
[1742838831924,5.97848963,2089.4,2089.3,39.36429]
[1742838832126,5.97848963,2089.4,2089.3,34.578]
[1742838832831,5.97848963,2089.4,2089.3,39.36429]
[1742838833037,5.97848963,2089.4,2089.3,44.1553977]
[1742838833216,7.59001594,2089.4,2089.3,44.1553977]
[1742838833591,8.39038204,2089.4,2089.3,34.8745977]
[1742838834826,7.59001594,2089.4,2089.3,43.8805977]
[1742838835125,12.46584796,2089.4,2089.3,43.8805977]
[1742838835925,12.11582633,2089.4,2089.3,43.8805977]
[1742838836125,12.11582633,2089.4,2089.3,25.298]
[1742838836302,12.11582633,2089.4,2089.3,34.184]
[1742838836500,12.11582633,2089.4,2089.3,30.08429]
[1742838836701,12.11582633,2089.4,2089.3,38.95029]
[1742838837286,0.56480586,2089.4,2089.3,38.95029]
[1742838838189,0.56480586,2089.4,2089.3,25.298]
[1742838838544,2.14760773,2089.4,2089.3,34.099]
[1742838839038,1.60354394,2089.4,2089.3,34.099]
[1742838839927,1.8274603,2089.4,2089.3,34.099]
[1742838840098,1.8274603,2089.4,2089.3,38.88529]
[1742838840519,1.8274603,2089.4,2089.3,34.099]
[1742838841069,1.36400908,2089.4,2089.3,25.297]
[1742838841934,1.8274603,2089.4,2089.1,25.297]
[1742838842330,1.8274603,2089.4,2089.2,8.676]
[1742838842649,9.11105923,2089.4,2089.2,8.676]
[1742838842818,0.44482692,2089.3,2089.2,8.676]
[1742838843018,0.8469,2089.2,2089.1,25.297]
[1742838843221,0.8469,2089.2,2089.1,8.639]
[1742838843426,0.55,2089.1,2088.7,25.297]
[1742838844665,0.46345122,2088.9,2088.7,25.297]
[1742838844870,1.00119725,2088.9,2088.8,8.596]
[1742838845473,0.90827814,2088.9,2088.8,8.567]
[1742838845973,1.36400908,2088.9,2088.8,8.567]
[1742838846630,1.91400908,2088.9,2088.8,8.567]
[1742838846954,0.55,2088.8,2088.7,33.814]
[1742838847358,0.55,2088.8,2088.2,25.3]
[1742838847546,0.55,2088.8,2088.7,8.499]
[1742838847861,8.33753,2088.8,2088.6,8.485]
[1742838848060,9.25671216,2088.8,2088.2,25.3]
[1742838848266,9.25671216,2088.8,2088.3,8.479]
[1742838848435,0.55,2088.6,2088.4,8.469]
[1742838848631,1.52015391,2088.6,2088.4,8.469]
[1742838848838,0.55,2088.6,2088.4,8.469]
[1742838849530,0.55,2088.6,2088.5,8.439]
[1742838849731,0.44482692,2088.7,2088.5,8.439]
[1742838849732,0.55,2088.7,2088.5,8.439]
[1742838850467,0.44643878,2088.6,2088.5,8.439]
[1742838851061,1.92463208,2088.6,2088.5,8.38]
[1742838852370,4.3466,2088.3,2088.2,25.3]
[1742838852668,1.83626,2088.3,2088.2,25.3]
[1742838853181,2.28269878,2088.3,2088.2,33.624]
[1742838853344,1.37463208,2088.3,2088.2,33.624]
[1742838853734,1.37463208,2088.3,2088.2,38.41281]
[1742838854860,0.9281933,2088.3,2088.2,38.41281]
[1742838855787,8.29596862,2088.3,2088.2,38.41281]
[1742838855938,7.72477274,2088.3,2088.2,38.41281]
[1742838856139,7.72477274,2088.3,2088.2,39.61363126]
[1742838857266,7.36777532,2088.3,2088.2,39.61363126]
[1742838857465,0.47548598,2088.9,2088.2,38.17981744]
[1742838857666,0.47548598,2088.9,2088.8,8.55368068]
[1742838857872,5.98e-06,2088.9,2088.8,10.36659275]
[1742838858072,5.98e-06,2088.9,2088.8,15.15659275]
[1742838858245,5.0,2089.3,2089.2,4.78652]
[1742838858571,5.0,2089.3,2089.2,12.98152]
[1742838859081,5.0,2089.3,2089.2,8.195]
[1742838859273,18.571782,2088.8,2087.4,3.0]
[1742838859475,10.2864,2089.3,2087.4,3.0]
[1742838859476,0.7897,2088.9,2087.4,3.0]
[1742838859784,0.7897,2088.9,2087.5,1.0769]
[1742838859985,0.7897,2088.9,2087.8,3.0]
[1742838860187,6.2897,2089.3,2088.7,4.78751]
[1742838860488,0.92680225,2088.8,2088.7,30.09746]
[1742838860690,0.92680225,2088.8,2088.7,38.47846]
[1742838861474,0.92680225,2088.8,2088.7,38.47866]
[1742838861672,6.2897,2089.3,2088.7,38.47866]
[1742838862166,6.2897,2089.3,2088.7,38.4786]
[1742838862370,5.0,2089.3,2088.8,4.78743]
[1742838862571,5.0,2089.3,2089.2,4.78652]
[1742838863173,5.0,2089.3,2088.7,35.83492931]
[1742838863483,0.55,2089.2,2088.8,8.3]
[1742838863982,0.55,2089.0,2088.7,8.292]
[1742838864283,0.92734653,2089.1,2088.7,8.292]
[1742838864448,0.92734653,2089.1,2088.8,8.283]
[1742838864652,2.77740418,2089.1,2088.5,9.57613]
[1742838864886,2.77740418,2089.1,2088.6,13.05082]
[1742838865071,2.77740418,2089.1,2088.6,8.256]
[1742838865275,5.0,2088.7,2088.6,8.256]
[1742838865887,5.0,2088.7,2088.3,31.08515068]
[1742838866186,5.0,2088.7,2088.4,8.227]
[1742838866989,0.35667174,2088.6,2088.4,8.227]
[1742838867602,0.35667174,2088.6,2088.5,8.181]
[1742838868507,0.35667174,2088.6,2088.3,31.08522068]
[1742838868657,0.35667174,2088.6,2088.4,12.94132]
[1742838869399,0.35667174,2088.6,2088.3,26.08497068]
[1742838869588,5.77454413,2088.5,2088.4,4.78821]
[1742838870493,5.77454413,2088.5,2088.4,12.90421]
[1742838870987,5.77454413,2088.5,2088.4,8.116]
[1742838871188,5.77454413,2088.5,2088.4,12.90435]
[1742838871789,5.77454413,2088.5,2088.4,17.6954577]
[1742838875598,5.77454413,2088.5,2088.4,12.90435]
[1742838877194,5.77454413,2088.5,2088.4,4.78835]
[1742838877366,5.77454413,2088.5,2088.4,7.897]
[1742838877856,5.77454413,2088.5,2088.4,12.68535]
[1742838878479,5.77454413,2088.5,2088.4,12.65235]
[1742838879505,5.77454413,2088.5,2088.4,4.78835]
[1742838879686,5.77454413,2088.5,2088.4,12.61835]
[1742838881796,5.77454413,2088.5,2088.4,16.96753507]
[1742838883697,5.77454413,2088.5,2088.4,17.89943507]
[1742838884106,5.77454413,2088.5,2088.4,20.89943507]
[1742838885413,4.13e-06,2088.5,2088.4,31.72043507]
[1742838889419,4.13e-06,2088.5,2088.4,32.27043507]
[1742838893926,6.16,2089.6,2089.1,4.78662]
[1742838894128,1.188601,2089.5,2089.2,7.456]
[1742838894430,2.11946381,2089.5,2089.2,7.456]
[1742838895708,0.93086281,2089.4,2089.2,7.456]
[1742838896649,3.91062142,2089.4,2089.2,7.456]
[1742838896840,0.35802416,2089.3,2089.2,7.456]
[1742838897197,0.35802416,2089.3,2089.2,7.372]
[1742838898344,0.35802416,2089.3,2089.2,12.15852]
[1742838898843,0.35802416,2089.3,2089.2,37.46052]
[1742838899209,0.35802416,2089.3,2089.2,30.08852]
[1742838899531,2.97975861,2089.4,2089.3,4.78629]
[1742838899846,0.9406,2089.7,2089.3,4.78629]
[1742838900016,2.129178,2089.7,2089.3,4.78629]
[1742838901267,2.129178,2089.7,2089.2,37.41252]
[1742838901443,0.93070173,2089.6,2089.4,4.78595]
[1742838902175,0.93070173,2089.6,2089.5,4.78583]
[1742838902727,11.98056,2090.0,2089.5,4.78583]
[1742838902929,1.676515,2089.9,2089.6,4.78548]
[1742838903171,7.1958,2090.0,2089.6,4.78548]
[1742838903372,7.1958,2090.0,2089.6,9.57099]
[1742838903542,7.1958,2090.0,2089.6,4.78548]
[1742838903975,7.1958,2090.0,2089.6,9.57098]
[1742838904193,7.1958,2090.0,2089.6,4.78548]
[1742838904481,8.393805,2090.0,2089.6,4.78548]
[1742838904652,0.93025666,2089.9,2089.5,4.78574]
[1742838905675,0.93025666,2089.9,2089.2,32.626]
[1742838905875,4.7856,2089.6,2089.2,32.626]
[1742838906071,4.78546,2089.7,2089.2,32.626]
[1742838906276,0.5143251,2089.6,2089.2,32.626]
[1742838906647,0.5143251,2089.6,2089.2,37.41236]
[1742838906843,6.16,2089.7,2089.3,4.7862]
[1742838907048,6.16,2089.7,2089.5,4.78582]
[1742838907246,6.16,2089.7,2089.5,9.57164]
[1742838907462,0.35779102,2089.5,2089.4,4.78602]
[1742838908797,6.16,2089.7,2089.4,4.78602]
[1742838909773,0.3577681,2089.6,2089.4,9.57199]
[1742838909974,0.3577681,2089.6,2089.4,4.78597]
[1742838911005,6.16,2089.7,2089.4,4.78597]
[1742838911302,6.16,2089.7,2089.4,9.57189]
[1742838911989,6.16,2089.7,2089.5,9.57146]
[1742838912167,6.16,2089.7,2089.5,4.78567]
[1742838912369,1.0358,2090.0,2089.7,4.78525]
[1742838912607,5.84061,2090.4,2089.8,16.59208]
[1742838912777,12.00061,2090.4,2089.9,4.78488]
[1742838913309,12.00061,2090.4,2089.9,30.08288]
[1742838913492,0.93091664,2090.3,2089.9,30.08288]
[1742838913666,2.2240693,2090.3,2089.9,25.298]
[1742838914701,2.2240693,2090.3,2089.9,30.08282]
[1742838914900,0.93091664,2090.2,2089.9,30.08282]
[1742838915878,0.93091664,2090.2,2089.9,25.298]
[1742838916412,0.93091664,2090.1,2089.9,25.298]
[1742838917624,0.35804486,2090.0,2089.9,25.298]
[1742838918324,0.35804486,2090.0,2089.9,30.08291]
[1742838919512,7.2168,2090.4,2090.0,4.78463]
[1742838919785,8.895182,2090.4,2090.0,4.78463]
[1742838920427,8.895182,2090.4,2090.0,4.78452]
[1742838920782,5.71405563,2090.3,2089.9,25.298]
[1742838921411,0.92993563,2090.3,2089.9,30.08284]
[1742838921911,0.92993563,2090.2,2089.9,30.08284]
[1742838922915,16.7846,2090.4,2089.9,30.08278]
[1742838922916,0.35766755,2090.1,2089.9,30.08278]
[1742838923122,0.35766755,2090.1,2089.9,34.86754]
[1742838923902,0.35766755,2090.1,2089.9,30.08276]
[1742838924102,0.57226808,2090.3,2089.9,30.08276]
[1742838924311,2.30791489,2090.3,2089.9,34.86757]
[1742838925215,2.30791489,2090.3,2089.9,30.08276]
[1742838925374,0.3577653,2090.2,2090.0,4.78467]
[1742838925580,0.93003338,2090.2,2089.9,30.08276]
[1742838925810,0.93003338,2090.2,2089.9,34.8676]
[1742838926497,0.93003338,2090.2,2089.9,30.08276]
[1742838926724,0.3577653,2090.1,2089.9,30.08276]
[1742838926906,0.3577653,2090.1,2090.0,4.78468]
[1742838927311,0.3577653,2090.1,2090.0,4.83252443]
[1742838928021,0.57226808,2090.3,2090.2,4.78423]
[1742838928192,0.57226808,2090.3,2090.1,4.78435]
[1742838928396,0.57226808,2090.3,2090.1,4.78432]
[1742838928991,0.57226808,2090.3,2090.1,9.56869]
[1742838929190,0.35789745,2090.2,2090.1,9.56869]
[1742838929423,0.35789745,2090.2,2090.1,4.78432]
[1742838936103,0.35789745,2090.2,2090.1,4.78432]
[1742838937218,0.35789745,2090.2,2090.1,30.07332]
[1742838937828,0.35789745,2090.2,2090.1,34.037606]
[1742838938141,4.78332,2090.6,2090.2,4.78413]
[1742838938643,4.78332,2090.6,2090.2,4.78406]
[1742838939439,4.78344,2090.6,2090.2,4.78406]
[1742838939639,12.0169,2090.8,2090.3,4.7839]
[1742838939847,0.93122078,2090.5,2090.4,6.498]
[1742838941417,0.93122078,2090.5,2090.4,11.28177]
[1742838941618,0.35816184,2090.5,2090.4,11.28177]
[1742838946847,0.35816184,2090.5,2090.4,36.56877]
[1742838948446,5.85675,2090.8,2090.4,36.56877]
[1742838948651,5.85675,2090.8,2090.4,41.3524]
[1742838948949,5.85675,2090.8,2090.4,36.56863]
[1742838949649,0.93087369,2090.7,2090.4,36.56863]
[1742838951249,0.93087369,2090.6,2090.4,31.785]
[1742838951450,4.78354,2090.5,2090.4,25.287]
[1742838951653,9.56728,2090.5,2090.4,6.302]
[1742838952545,5.71441369,2090.5,2090.4,6.302]
[1742838953653,5.71441369,2090.5,2090.2,25.286]
[1742838953954,5.71441369,2090.5,2090.3,6.264]
[1742838954358,10.49812369,2090.5,2090.3,6.264]
[1742838955150,0.93087369,2090.4,2090.3,6.264]
[1742838955928,5.71464369,2090.4,2090.3,6.264]
[1742838957658,0.93087369,2090.4,2090.3,6.264]
[1742838959066,5.71464369,2090.4,2090.3,6.264]
[1742838960071,5.71464369,2090.4,2090.0,4.78454]
[1742838960259,4.7843,2090.2,2090.1,31.455]
[1742838960781,4.7843,2090.2,2090.1,25.287]
[1742838961070,4.78514,2089.8,2089.7,25.287]
[1742838961239,4.78514,2089.8,2089.7,31.447]
[1742838961436,4.78514,2089.8,2089.7,31.446]
[1742838961840,5.71601369,2089.8,2089.7,31.446]
[1742838962586,6.76612606,2089.8,2089.7,31.433]
[1742838962739,6.76612606,2089.8,2089.7,25.287]
[1742838962939,6.76612606,2089.8,2089.7,31.426]
[1742838963180,7.31612606,2089.8,2089.7,31.426]
[1742838964136,8.35142606,2089.8,2089.7,31.426]
[1742838964990,8.35142606,2089.8,2089.7,25.287]
[1742838964991,14.51142606,2089.8,2089.7,25.287]
[1742838967673,17.51142606,2089.8,2089.7,25.287]
[1742838968882,16.46131369,2089.8,2089.7,25.287]
[1742838969184,0.93087369,2089.8,2089.7,31.20647]
[1742838970684,0.93087369,2089.8,2089.7,26.4211]
[1742838971679,4.78478,2090.0,2089.7,26.4211]
[1742838971885,4.78492,2089.9,2089.7,25.287]
[1742838972774,4.7847,2090.0,2089.7,25.287]
[1742838973378,9.56903,2090.1,2089.7,25.287]
[1742838973790,4.78447,2090.1,2089.7,25.287]
[1742838974385,4.78477,2090.0,2089.7,25.287]
[1742838974558,0.956924,2089.9,2089.7,25.287]
[1742838974761,4.78514,2089.8,2089.7,25.287]
[1742838975391,4.78514,2089.8,2089.7,31.297]
[1742838976807,5.14196681,2089.8,2089.7,31.297]
[1742838976965,5.14196681,2089.8,2089.7,25.287]
[1742838977165,5.14196681,2089.8,2089.7,31.274]
[1742838977397,7.27769649,2089.8,2089.7,31.274]
[1742838977763,7.84868821,2089.8,2089.7,31.274]
[1742838979266,14.00868821,2089.8,2089.7,31.274]
[1742838982386,14.00868821,2089.8,2089.7,5.987]
[1742838990172,11.87295853,2089.8,2089.7,5.987]
[1742838990876,0.92781853,2089.8,2089.7,5.987]
[1742838991107,5.71295853,2089.8,2089.7,5.987]
[1742838992406,0.92781853,2089.8,2089.7,5.987]
[1742838993804,4.78492,2089.9,2089.7,5.987]
[1742838994114,5.71601143,2089.8,2089.7,5.987]
[1742838994525,0.93087143,2089.8,2089.7,5.987]
[1742838996323,5.71601143,2089.8,2089.7,5.987]
[1742838998106,0.93087143,2089.8,2089.7,5.987]
[1742839006623,0.93087143,2089.8,2089.7,9.1156]
[1742839008645,0.93087143,2089.8,2089.7,13.90097]
[1742839009122,0.35802747,2089.8,2089.7,13.90097]
[1742839009823,0.35802747,2089.8,2089.7,9.1156]
[1742839010330,0.35802747,2089.8,2089.7,13.90097]
[1742839011113,0.35802747,2089.8,2089.7,9.1156]
[1742839013427,0.35802747,2089.8,2089.7,5.987]
[1742839015904,0.35802747,2089.8,2089.7,31.282]
[1742839018229,0.35802747,2089.8,2089.7,36.06737]
[1742839019026,4.78424,2090.2,2089.8,4.78507]
[1742839019234,4.78424,2090.2,2089.8,4.83291612]
[1742839019432,4.78424,2090.2,2089.9,4.09002661]
[1742839019730,4.78409,2090.3,2089.9,4.09002661]
[1742839020323,5.71642218,2090.2,2089.9,4.09002661]
[1742839021335,0.93215218,2090.1,2089.9,4.09002661]
[1742839022835,0.35852007,2090.0,2089.9,4.09002661]
[1742839025940,4.78406,2090.3,2089.9,4.09002661]
[1742839026334,9.56822,2090.3,2089.9,4.09002661]
[1742839026507,0.35841282,2090.0,2089.9,4.09002661]
[1742839027336,0.35841282,2090.0,2089.9,8.87493661]
[1742839030710,0.35841282,2090.0,2089.9,4.09002661]
[1742839031343,0.35841282,2090.0,2089.9,8.87493661]
[1742839035267,0.35841282,2090.0,2089.9,34.16593661]
[1742839036268,0.35841282,2090.0,2089.9,30.07591]
[1742839038200,0.35841282,2090.0,2089.9,31.20061]
[1742839039066,6.16,2090.4,2090.0,4.78447]
[1742839039883,6.16,2090.4,2090.1,4.78443]